bitfinex/quotes_BTCUSD_20241107
["timestamp","ask_amount","ask_price","bid_price","bid_amount"]
[1730945763998,0.00861961,75386.0,75377.0,0.01107245]
[1730945764176,0.00496,75386.0,75378.0,0.03196901]
[1730945764412,1.5,75382.0,75379.0,0.00425826]
[1730945764611,1.5,75382.0,75380.0,0.00425627]
[1730945764830,1.5,75382.0,75377.0,0.006811]
[1730945764831,0.00365961,75378.0,75377.0,0.006811]
[1730945765042,0.00365961,75372.0,75371.0,0.006811]
[1730945765473,1.5,75372.0,75363.0,0.15463038]
[1730945765707,1.5,75372.0,75368.0,0.005]
[1730945765943,1.5,75372.0,75371.0,0.00634039]
[1730945766850,0.00365961,75387.0,75372.0,0.005]
[1730945767281,0.00861961,75387.0,75372.0,0.005]
[1730945767508,0.00365961,75387.0,75373.0,0.03000258]
[1730945767722,0.00861961,75387.0,75373.0,0.22789568]
[1730945768160,1.5,75388.0,75374.0,0.23358141]
[1730945768393,1.5,75388.0,75382.0,0.15463038]
[1730945768607,0.000752,75398.0,75391.0,0.00634039]
[1730945768816,0.1978931,75392.0,75391.0,0.00634039]
[1730945769036,0.000752,75398.0,75391.0,0.00634039]
[1730945769272,1.5,75392.0,75391.0,0.00634039]
[1730945769692,0.000752,75398.0,75391.0,0.00634039]
[1730945770594,0.000752,75398.0,75392.0,0.00681274]
[1730945771134,0.000752,75398.0,75393.0,0.00681274]
[1730945771344,0.000752,75398.0,75394.0,0.00681274]
[1730945771561,0.000752,75398.0,75395.0,0.00681274]
[1730945772311,0.000752,75398.0,75395.0,0.00681298]
[1730945774118,0.000752,75398.0,75396.0,0.00681298]
[1730945774322,0.000752,75398.0,75397.0,0.00681298]
[1730945775001,1.5,75399.0,75397.0,0.00681298]
[1730945775141,1.5,75399.0,75398.0,0.00681298]
[1730945777002,1.5,75399.0,75398.0,0.01107508]
[1730945777138,1.5,75399.0,75398.0,0.01363333]
[1730945777341,1.5,75399.0,75398.0,0.01108246]
[1730945777743,1.50365961,75399.0,75398.0,0.01108246]
[1730945777948,1.50365961,75399.0,75398.0,0.00426211]
[1730945777949,2.01929101,75399.0,75398.0,0.00426211]
[1730945778161,0.00365961,75385.0,75374.0,0.00988948]
[1730945778379,0.00365961,75385.0,75384.0,0.1978931]
[1730945778746,0.00365961,75385.0,75384.0,0.00426395]
[1730945779148,1.50365961,75385.0,75384.0,0.00426395]
[1730945779701,1.50165961,75385.0,75384.0,0.00426395]
[1730945780117,1.57865961,75385.0,75384.0,0.00426395]
[1730945780321,1.76266063,75385.0,75384.0,0.00426395]
[1730945780591,2.26266063,75385.0,75384.0,0.00426395]
[1730945780797,2.26266063,75385.0,75373.0,0.1978931]
[1730945781017,0.00661961,75382.0,75381.0,0.1978931]
[1730945781204,0.00661961,75382.0,75374.0,0.02512735]
[1730945781519,0.00661961,75382.0,75375.0,0.00426569]
[1730945782373,0.00661961,75382.0,75376.0,0.00426569]
[1730945783222,0.00661961,75382.0,75377.0,0.00426569]
[1730945783439,0.03704936,75382.0,75377.0,0.00426569]
[1730945783648,0.00496,75382.0,75377.0,0.00426569]
[1730945784052,0.00496,75382.0,75378.0,0.00426569]
[1730945784318,0.00496,75382.0,75373.0,0.00989977]
[1730945784544,0.00496,75382.0,75379.0,0.00425611]
[1730945784762,0.00496,75382.0,75380.0,0.00425611]
[1730945784965,0.00165961,75384.0,75380.0,0.00425611]
[1730945785400,0.00165961,75384.0,75381.0,0.00425611]
[1730945786217,0.00165961,75384.0,75382.0,0.00425611]
[1730945786425,1.5,75385.0,75382.0,0.20214921]
[1730945786631,0.0777,75393.0,75383.0,0.04026811]
[1730945786810,0.0777,75393.0,75383.0,0.00425611]
[1730945787027,0.0777,75393.0,75384.0,0.00989977]
[1730945787247,1.5,75392.0,75385.0,0.20214921]
[1730945787457,1.5,75392.0,75385.0,0.01415588]
[1730945787663,1.5,75392.0,75385.0,0.00425611]
[1730945787887,1.5,75392.0,75386.0,0.00425729]
[1730945788140,1.5,75392.0,75386.0,0.0110704]
[1730945788355,0.001666,75399.0,75389.0,0.00334039]
[1730945788559,0.001666,75399.0,75391.0,0.00334039]
[1730945788758,0.001666,75399.0,75392.0,0.00990456]
[1730945788997,0.001666,75399.0,75393.0,0.02807452]
[1730945789215,0.001666,75399.0,75394.0,0.00990456]
[1730945789427,0.001666,75399.0,75395.0,0.04613893]
[1730945789639,0.001666,75399.0,75396.0,0.00990456]
[1730945789860,0.001666,75399.0,75397.0,0.02097509]
[1730945790072,0.001666,75399.0,75398.0,0.01106876]
[1730945790314,0.001666,75399.0,75398.0,0.02097101]
[1730945790522,0.001666,75399.0,75398.0,0.01106876]
[1730945790731,0.001666,75399.0,75398.0,0.02097101]
[1730945790944,0.001666,75399.0,75398.0,0.01106876]
[1730945791580,0.001666,75399.0,75394.0,0.00990225]
[1730945791786,0.001666,75399.0,75398.0,0.01106694]
[1730945791986,0.001666,75399.0,75398.0,0.00990165]
[1730945792208,0.001666,75399.0,75396.0,0.00990165]
[1730945792395,0.001666,75399.0,75397.0,0.00990165]
[1730945794888,1.50165961,75385.0,75384.0,0.00709929]
[1730945795983,1.50165961,75385.0,75380.0,0.03957221]
[1730945796282,1.5,75385.0,75381.0,0.00851626]
[1730945796639,1.5,75385.0,75382.0,0.000833]
[1730945797022,0.00165961,75383.0,75382.0,0.000833]
[1730945797313,0.13225961,75383.0,75382.0,0.000833]
[1730945797957,0.26450063,75383.0,75382.0,0.000833]
[1730945800248,0.29491866,75383.0,75382.0,0.000833]
[1730945801454,0.16101803,75383.0,75382.0,0.000833]
[1730945801662,1.5,75385.0,75382.0,0.000833]
[1730945801864,1.5,75385.0,75383.0,0.01638038]
[1730945802508,1.5,75385.0,75382.0,0.000833]
[1730945804319,1.5,75385.0,75383.0,0.00677901]
[1730945804533,1.5,75385.0,75384.0,0.00677901]
[1730945806151,1.5,75385.0,75382.0,0.000833]
[1730945806349,1.5,75385.0,75383.0,0.0067803]
[1730945806519,1.5,75385.0,75384.0,0.01101751]
[1730945807778,1.5,75385.0,75384.0,0.01949411]
[1730945808201,1.5,75385.0,75384.0,0.01101751]
[1730945808408,1.5,75385.0,75384.0,0.01949411]
[1730945809450,1.5,75385.0,75384.0,0.02032711]
[1730945809667,1.5,75385.0,75384.0,0.01911859]
[1730945809916,1.5,75385.0,75384.0,0.01354975]
[1730945810115,1.5,75385.0,75384.0,0.02711386]
[1730945810982,0.00332561,75392.0,75384.0,0.02711386]
[1730945811202,0.00332561,75392.0,75385.0,0.01102017]
[1730945811408,0.00332561,75392.0,75386.0,0.01102017]
[1730945811610,0.00332561,75392.0,75387.0,0.01102017]
[1730945811822,0.00332561,75392.0,75388.0,0.01102017]
[1730945812062,0.00332561,75392.0,75389.0,0.01102017]
[1730945812278,0.001666,75392.0,75390.0,0.01102017]
[1730945812499,0.001666,75392.0,75391.0,0.01102017]
[1730945813348,0.001666,75392.0,75391.0,0.16565055]
[1730945813563,0.001666,75392.0,75391.0,0.17287735]
[1730945813792,0.001666,75392.0,75391.0,0.02926466]
[1730945814011,0.001666,75392.0,75391.0,0.01949453]
[1730945816283,0.001666,75392.0,75391.0,0.01101769]
[1730945816959,0.001666,75392.0,75386.0,0.005]
[1730945817359,0.001666,75392.0,75385.0,0.005]
[1730945817614,0.001666,75392.0,75386.0,0.005]
[1730945818224,0.001666,75399.0,75387.0,0.1170371]
[1730945818441,0.1978931,75398.0,75387.0,0.09754187]
[1730945818658,0.1978931,75398.0,75388.0,0.01949118]
[1730945818880,0.1978931,75398.0,75389.0,0.01949118]
[1730945819097,1.5,75397.0,75390.0,0.0110158]
[1730945819550,1.50165961,75397.0,75391.0,0.0110158]
[1730945819741,0.00165961,75395.0,75392.0,0.0110158]
[1730945819949,0.00165961,75395.0,75393.0,0.00677933]
[1730945820163,0.00165961,75395.0,75394.0,0.0110158]
[1730945821240,0.13165961,75395.0,75394.0,0.0110158]
[1730945821891,1.63165961,75395.0,75394.0,0.0110158]
[1730945822600,1.63165961,75395.0,75394.0,0.00677933]
[1730945822825,1.63165961,75395.0,75394.0,0.01101976]
[1730945826501,1.60765961,75395.0,75394.0,0.01101976]
[1730945826909,1.60765961,75395.0,75394.0,0.00423799]
[1730945827925,1.60765961,75395.0,75394.0,0.01102341]
[1730945829387,1.60765961,75395.0,75394.0,0.01102932]
[1730945830067,1.60765961,75395.0,75390.0,0.00848579]
[1730945830068,0.132652,75385.0,75384.0,0.000833]
[1730945830299,0.132652,75385.0,75382.0,0.000833]
[1730945830300,0.5,75383.0,75382.0,0.000833]
[1730945830518,0.70834102,75383.0,75382.0,0.000833]
[1730945830929,2.55299816,75383.0,75382.0,0.000833]
[1730945831176,2.60239816,75383.0,75382.0,0.000833]
[1730945832030,2.75702854,75383.0,75382.0,0.000833]
[1730945832257,2.6520264,75383.0,75382.0,0.000833]
[1730945832450,2.6500264,75383.0,75382.0,0.000833]
[1730945833077,2.6520264,75383.0,75382.0,0.000833]
[1730945833550,2.68243143,75383.0,75382.0,0.000833]
[1730945833780,2.70543143,75383.0,75382.0,0.000833]
[1730945834010,2.8376742,75383.0,75382.0,0.000833]
[1730945834238,2.8356742,75383.0,75382.0,0.000833]
[1730945834690,2.70343143,75383.0,75382.0,0.000833]
[1730945834966,2.57077643,75383.0,75382.0,0.000833]
[1730945835200,2.70543143,75383.0,75382.0,0.000833]
[1730945837694,0.867873,75373.0,75372.0,0.000834]
[1730945837918,0.0778,75361.0,75341.0,0.000834]
[1730945838140,0.13224102,75360.0,75359.0,0.1978931]
[1730945838366,0.17764102,75360.0,75341.0,0.000834]
[1730945838597,1.67764102,75360.0,75345.0,0.1978931]
[1730945838857,0.1,75357.0,75341.0,0.000834]
[1730945839088,0.5,75354.0,75341.0,0.000834]
[1730945839314,1.5,75346.0,75341.0,0.000834]
[1730945839513,0.13224102,75345.0,75341.0,0.000834]
[1730945839732,0.17974102,75345.0,75341.0,0.000834]
[1730945839980,0.0769,75344.0,75341.0,0.000834]
[1730945840177,1.5,75343.0,75341.0,0.000834]
[1730945841982,1.5,75343.0,75342.0,0.0042001]
[1730945842177,0.1978931,75358.0,75342.0,0.0042001]
[1730945842404,0.1978931,75358.0,75354.0,0.15463038]
[1730945842998,0.1978931,75365.0,75360.0,0.005]
[1730945843210,0.1978931,75365.0,75361.0,0.0042001]
[1730945843669,1.5,75373.0,75361.0,0.0042001]
[1730945843894,1.5,75373.0,75361.0,0.09571982]
[1730945844254,1.5,75373.0,75362.0,0.00671978]
[1730945844457,1.5,75373.0,75362.0,0.00419922]
[1730945844668,1.5,75373.0,75362.0,0.01091896]
[1730945845161,1.5,75373.0,75363.0,0.01091896]
[1730945845366,1.5,75373.0,75364.0,0.00419922]
[1730945845576,0.1978931,75374.0,75364.0,0.01091896]
[1730945845732,0.1978931,75374.0,75365.0,0.01091896]
[1730945845900,0.1978931,75374.0,75366.0,0.01091896]
[1730945846112,0.02981308,75376.0,75367.0,0.01091896]
[1730945846332,0.0763,75381.0,75368.0,0.01091896]
[1730945846541,1.5,75372.0,75369.0,0.01091896]
[1730945846746,1.5,75372.0,75371.0,0.15463038]
[1730945846948,1.5,75372.0,75371.0,0.16554934]
[1730945847577,1.5,75372.0,75371.0,0.15463038]
[1730945847785,1.5,75372.0,75371.0,0.16555864]
[1730945847985,1.5,75372.0,75371.0,0.27387332]
[1730945848198,0.001668,75383.0,75371.0,0.11924294]
[1730945848417,0.1978931,75378.0,75377.0,0.15463038]
[1730945848607,0.001668,75383.0,75377.0,0.17055864]
[1730945848835,0.1978931,75382.0,75380.0,0.005]
[1730945849043,0.001668,75383.0,75381.0,0.0193363]
[1730945849286,0.001668,75383.0,75382.0,0.0193363]
[1730945849509,0.001668,75383.0,75382.0,0.01092826]
[1730945851068,0.001668,75383.0,75382.0,1.08632206]
[1730945851234,0.001666,75399.0,75393.0,0.005]
[1730945851406,0.001666,75399.0,75391.0,0.01]
[1730945851407,0.1978931,75392.0,75391.0,0.015]
[1730945851778,0.001666,75399.0,75393.0,0.005]
[1730945851991,0.001666,75399.0,75394.0,0.15463038]
[1730945852236,0.001666,75399.0,75394.0,0.3018714]
[1730945852461,0.001666,75399.0,75394.0,0.35403436]
[1730945853329,0.001666,75399.0,75394.0,0.35503436]
[1730945853555,0.001666,75399.0,75394.0,0.34662425]
[1730945853836,0.001666,75399.0,75394.0,0.34562425]
[1730945854058,0.001666,75399.0,75394.0,0.34662425]
[1730945855368,0.001666,75399.0,75394.0,0.34562425]
[1730945855575,0.001666,75399.0,75394.0,0.34662425]
[1730945855806,0.001666,75399.0,75394.0,0.35503436]
[1730945856012,0.001666,75399.0,75394.0,1.15403436]
[1730945856405,0.001666,75399.0,75394.0,1.14562425]
[1730945857234,0.001666,75399.0,75394.0,1.15403436]
[1730945857468,0.001666,75399.0,75394.0,1.14562425]
[1730945857885,0.001666,75399.0,75394.0,0.96158207]
[1730945858102,0.001666,75399.0,75394.0,0.82934105]
[1730945858550,0.001666,75399.0,75394.0,0.81590067]
[1730945858755,0.001666,75399.0,75394.0,0.81490067]
[1730945858969,0.001666,75399.0,75394.0,0.80990067]
[1730945859183,0.001666,75399.0,75394.0,0.81090067]
[1730945859619,0.001666,75399.0,75394.0,0.80990067]
[1730945860042,0.001666,75399.0,75394.0,0.81090067]
[1730945860493,0.001666,75399.0,75394.0,0.80419219]
[1730945860743,0.03165401,75398.0,75394.0,0.80419219]
[1730945860967,0.03032001,75398.0,75394.0,0.88461141]
[1730945861178,0.000332,75398.0,75395.0,0.00419219]
[1730945861853,0.000332,75398.0,75396.0,0.00419219]
[1730945862070,0.000332,75398.0,75394.0,0.001]
[1730945862071,0.000332,75398.0,75397.0,0.00418894]
[1730945862335,0.33046612,75398.0,75397.0,0.00418894]
[1730945862559,0.33046612,75398.0,75369.0,0.799]
[1730945862560,0.5,75390.0,75384.0,0.01089223]
[1730945862761,0.1282,75388.0,75385.0,0.1978931]
[1730945862972,0.13224102,75387.0,75384.0,0.01089223]
[1730945863400,1.5,75385.0,75374.0,0.00698513]
[1730945863636,1.5,75385.0,75375.0,0.00418977]
[1730945864506,1.5,75385.0,75367.0,0.00418977]
[1730945864715,1.5,75385.0,75368.0,0.00418977]
[1730945864929,1.5,75385.0,75384.0,0.001]
[1730945865365,1.5,75385.0,75369.0,0.00418977]
[1730945865563,1.52949518,75385.0,75369.0,0.00418977]
[1730945865769,1.52949518,75385.0,75383.0,0.001834]
[1730945866323,0.02949518,75385.0,75383.0,0.001834]
[1730945866530,0.13224102,75387.0,75383.0,0.001834]
[1730945866946,1.5,75386.0,75383.0,0.001834]
[1730945867150,1.63224102,75386.0,75383.0,0.001834]
[1730945867710,1.63224102,75386.0,75383.0,0.000834]
[1730945868147,1.63224102,75386.0,75383.0,0.001834]
[1730945868564,1.63224102,75386.0,75383.0,0.000834]
[1730945868864,1.63224102,75386.0,75383.0,0.001834]
[1730945869923,1.5,75386.0,75383.0,0.001834]
[1730945870139,1.5,75386.0,75383.0,0.000834]
[1730945870782,1.5,75386.0,75384.0,0.00420017]
[1730945871234,1.5,75386.0,75385.0,0.00420463]
[1730945871735,1.5,75386.0,75383.0,0.000834]
[1730945872142,1.5,75386.0,75384.0,0.00420455]
[1730945872353,1.5,75386.0,75383.0,0.000834]
[1730945872716,1.5,75386.0,75384.0,0.00420774]
[1730945873166,1.5,75386.0,75383.0,0.000834]
[1730945873523,0.52982212,75390.0,75383.0,0.000834]
[1730945873731,0.13224102,75389.0,75383.0,0.000834]
[1730945873925,1.5,75388.0,75383.0,0.000834]
[1730945874192,0.13224102,75387.0,75383.0,0.000834]
[1730945874814,1.5,75386.0,75383.0,0.000834]
[1730945875211,1.5,75386.0,75385.0,0.1978931]
[1730945875506,0.0829,75396.0,75385.0,0.03533575]
[1730945875656,0.0829,75396.0,75385.0,0.01094228]
[1730945875891,1.5,75395.0,75385.0,0.01094228]
[1730945876541,1.5,75395.0,75386.0,0.01094228]
[1730945876771,0.0829,75396.0,75387.0,0.01094838]
[1730945877305,0.0829,75396.0,75388.0,0.01094838]
[1730945877485,0.0829,75396.0,75389.0,0.01094838]
[1730945877692,1.5,75394.0,75389.0,0.01094838]
[1730945878333,1.5,75394.0,75390.0,0.00421054]
[1730945878549,1.5,75394.0,75383.0,0.000834]
[1730945878706,1.5,75394.0,75385.0,0.00673816]
[1730945879786,1.5,75394.0,75391.0,0.00421074]
[1730945882644,1.5,75394.0,75392.0,0.01095081]
[1730945882797,1.5,75394.0,75393.0,0.01095081]
[1730945883205,1.5,75394.0,75393.0,0.02793]
[1730945883404,0.000332,75398.0,75396.0,0.005]
[1730945883666,0.000332,75398.0,75397.0,0.15884185]
[1730945883866,0.000332,75398.0,75397.0,0.16558119]
[1730945887378,0.001666,75399.0,75397.0,0.16558119]
[1730945887591,0.001666,75399.0,75398.0,0.05925077]
[1730945887804,0.001666,75399.0,75398.0,0.01095081]
[1730945888020,0.001666,75399.0,75396.0,0.3692714]
[1730945888225,0.001666,75399.0,75398.0,0.00674033]
[1730945888462,0.001666,75399.0,75398.0,0.00673958]
[1730945888678,0.001666,75399.0,75398.0,0.0109512]
[1730945888895,0.001666,75399.0,75398.0,0.27183738]
[1730945889095,0.001666,75399.0,75398.0,0.28448964]
[1730945889293,0.001666,75399.0,75398.0,0.28183738]
[1730945889514,0.001666,75399.0,75398.0,0.14459636]
[1730945891409,0.001666,75399.0,75398.0,0.13959636]
[1730945891859,0.001666,75399.0,75398.0,0.13364516]
[1730945892117,0.00017,75403.0,75402.0,0.005]
[1730945892328,0.00017,75403.0,75402.0,0.16557471]
[1730945892597,0.00017,75403.0,75402.0,0.01094433]
[1730945892946,0.1978931,75412.0,75402.0,0.00420898]
[1730945893170,0.1978931,75412.0,75403.0,0.00420898]
[1730945893545,1.5,75411.0,75404.0,0.00420898]
[1730945894434,1.5,75411.0,75405.0,0.00420898]
[1730945894638,1.5,75411.0,75406.0,0.00420898]
[1730945895060,1.5,75411.0,75407.0,0.00420898]
[1730945895461,0.0832,75410.0,75407.0,0.00420898]
[1730945895641,0.2810931,75410.0,75407.0,0.00420898]
[1730945895878,0.0473,75409.0,75408.0,0.00420898]
[1730945896076,1.5,75411.0,75408.0,0.00420898]
[1730945896509,1.5,75411.0,75400.0,0.00420898]
[1730945896738,1.5,75411.0,75401.0,0.29888269]
[1730945896957,1.5,75411.0,75401.0,0.10098959]
[1730945897180,1.5,75411.0,75405.0,0.15463038]
[1730945897390,1.5,75411.0,75406.0,0.00420565]
[1730945897602,1.5,75411.0,75406.0,0.00420655]
[1730945898015,1.5,75411.0,75406.0,0.03003386]
[1730945898188,1.5,75411.0,75406.0,0.00420655]
[1730945898484,1.501668,75411.0,75407.0,0.00420655]
[1730945898697,1.501668,75411.0,75398.0,0.15463038]
[1730945898906,1.501668,75411.0,75399.0,0.1978931]
[1730945899101,1.501668,75411.0,75400.0,0.11665235]
[1730945899421,0.1978931,75410.0,75400.0,0.11665235]
[1730945900608,1.501668,75411.0,75400.0,0.11665235]
[1730945901834,0.1978931,75401.0,75385.0,0.04039411]
[1730945902079,0.0459,75399.0,75394.0,0.1978931]
[1730945902319,0.0459,75399.0,75386.0,0.1978931]
[1730945902555,1.5,75398.0,75387.0,0.0532212]
[1730945902775,1.5,75398.0,75389.0,0.15463038]
[1730945903002,1.5,75398.0,75395.0,0.15463038]
[1730945904117,1.5,75398.0,75390.0,0.005]
[1730945904332,1.5,75398.0,75391.0,0.13224102]
[1730945904756,0.1978931,75397.0,75385.0,0.005834]
[1730945905000,0.1978931,75397.0,75385.0,0.000834]
[1730945905238,0.0809,75396.0,75385.0,0.000834]
[1730945907779,0.0569,75396.0,75385.0,0.000834]
[1730945908402,1.5,75395.0,75385.0,0.000834]
[1730945912248,1.5,75395.0,75388.0,0.15463038]
[1730945912475,1.5,75395.0,75389.0,0.02935394]
[1730945912700,1.5,75395.0,75388.0,0.15463038]
[1730945913400,1.5,75395.0,75386.0,0.13724102]
[1730945913620,1.5,75395.0,75385.0,0.000834]
[1730945914126,0.0756,75394.0,75385.0,0.000834]
[1730945915060,0.3219931,75394.0,75385.0,0.000834]
[1730945915506,0.1241,75394.0,75385.0,0.000834]
[1730945916396,0.15444136,75394.0,75385.0,0.000834]
[1730945916661,0.35233446,75394.0,75385.0,0.000834]
[1730945916882,0.15444136,75394.0,75385.0,0.000834]
[1730945917542,1.5,75393.0,75385.0,0.000834]
[1730945920963,0.1978931,75392.0,75385.0,0.000834]
[1730945921422,0.0756,75394.0,75385.0,0.000834]
[1730945921725,1.5,75391.0,75385.0,0.000834]
[1730945923730,0.0485,75390.0,75385.0,0.000834]
[1730945924190,0.0245,75390.0,75385.0,0.000834]
[1730945927282,1.5,75389.0,75385.0,0.000834]
[1730945933586,1.499845,75389.0,75385.0,0.000834]
[1730945934217,0.001668,75396.0,75387.0,0.15463038]
[1730945938123,0.001668,75396.0,75387.0,0.2868714]
[1730945938365,0.001668,75396.0,75388.0,0.13489373]
[1730945938600,0.001668,75396.0,75388.0,0.13224102]
[1730945938794,1.5,75397.0,75388.0,0.13224102]
[1730945938997,0.02973682,75405.0,75385.0,0.01646384]
[1730945938998,0.1978931,75396.0,75385.0,0.01646384]
[1730945939419,0.02973682,75405.0,75385.0,0.01646384]
[1730945939420,0.02973682,75405.0,75386.0,0.02306282]
[1730945939639,0.1978931,75398.0,75386.0,0.02306282]
[1730945939861,1.5,75395.0,75386.0,0.02306282]
[1730945941870,1.5,75395.0,75385.0,0.000834]
[1730945942541,0.0827,75394.0,75385.0,0.000834]
[1730945944255,1.500834,75395.0,75385.0,0.000834]
[1730945944912,0.1978931,75394.0,75385.0,0.000834]
[1730945945693,0.0455,75392.0,75385.0,0.000834]
[1730945945898,0.13224102,75391.0,75385.0,0.000834]
[1730945946105,0.1,75390.0,75385.0,0.000834]
[1730945946317,0.0455,75392.0,75385.0,0.000834]
[1730945946318,1.6,75386.0,75385.0,0.000834]
[1730945946538,1.675,75386.0,75385.0,0.000834]
[1730945946903,1.80724102,75386.0,75385.0,0.000834]
[1730945947340,1.93155613,75386.0,75385.0,0.000834]
[1730945947753,1.80724102,75386.0,75385.0,0.000834]
[1730945948978,2.30724102,75386.0,75385.0,0.000834]
[1730945949225,2.49619102,75386.0,75385.0,0.000834]
[1730945949443,2.36354102,75386.0,75385.0,0.000834]
[1730945950782,2.35854102,75386.0,75385.0,0.000834]
[1730945951690,2.49619102,75386.0,75385.0,0.000834]
[1730945952470,2.52619102,75386.0,75385.0,0.000834]
[1730945954144,2.54019102,75386.0,75385.0,0.000834]
[1730945954609,2.52619102,75386.0,75385.0,0.000834]
[1730945954831,2.54019102,75386.0,75385.0,0.000834]
[1730945955055,0.1,75371.0,75362.0,0.000834]
[1730945955310,0.1814,75371.0,75370.0,0.1978931]
[1730945955537,0.1814,75371.0,75362.0,0.000834]
[1730945956247,0.0459,75370.0,75362.0,0.000834]
[1730945956469,0.17814102,75370.0,75362.0,0.000834]
[1730945956679,0.1,75369.0,75362.0,0.000834]
[1730945958283,0.17814102,75370.0,75362.0,0.000834]
[1730945958284,0.1,75367.0,75362.0,0.000834]
[1730945958512,0.13224102,75366.0,75362.0,0.000834]
[1730945961722,0.1,75365.0,75362.0,0.000834]
[1730945961940,0.13224102,75364.0,75362.0,0.000834]
[1730945962397,1.5,75363.0,75362.0,0.000834]
[1730945962665,1.73224102,75363.0,75362.0,0.000834]
[1730945963302,2.23224102,75363.0,75362.0,0.000834]
[1730945965318,1.6,75363.0,75362.0,0.000834]
[1730945969891,0.02996945,75369.0,75362.0,0.000834]
[1730945970133,0.1,75368.0,75362.0,0.000834]
[1730945970741,1.6,75363.0,75362.0,0.000834]
[1730945973941,1.6,75363.0,75345.0,0.789834]
[1730945974146,1.6,75363.0,75348.0,0.1978931]
[1730945974147,0.0784,75361.0,75348.0,0.1978931]
[1730945974366,0.13224102,75360.0,75342.0,0.789834]
[1730945974589,0.13224102,75360.0,75345.0,0.1978931]
[1730945974793,1.5,75349.0,75342.0,0.789834]
[1730945975875,1.5,75349.0,75342.0,0.90123844]
[1730945976495,1.5,75349.0,75344.0,0.15463038]
[1730945977143,0.1978931,75359.0,75344.0,0.15463038]
[1730945977144,0.1978931,75359.0,75345.0,0.13224102]
[1730945977378,0.1978931,75359.0,75354.0,0.15463038]
[1730945977579,0.1978931,75369.0,75355.0,0.25354102]
[1730945977809,0.1978931,75361.0,75356.0,0.005]
[1730945978060,1.5,75362.0,75357.0,0.13224102]
[1730945979253,1.5,75362.0,75361.0,0.15463038]
[1730945980611,0.1978931,75369.0,75361.0,0.15463038]
[1730945980813,0.1978931,75369.0,75361.0,0.18385029]
[1730945981020,0.1,75376.0,75361.0,0.17885029]
[1730945981219,0.1978931,75377.0,75361.0,0.17885029]
[1730945981220,1.5,75368.0,75361.0,0.17885029]
[1730945982792,0.1987271,75385.0,75359.0,0.0352301]
[1730945982793,0.000834,75385.0,75384.0,0.007]
[1730945983010,0.000834,75385.0,75384.0,0.93588658]
[1730945983239,0.000834,75385.0,75384.0,0.938234]
[1730945985311,0.000834,75385.0,75384.0,0.936234]
[1730945985537,0.000834,75385.0,75384.0,1.09769493]
[1730945986789,0.000834,75385.0,75384.0,1.06847502]
[1730945987006,0.000834,75385.0,75378.0,0.02986642]
[1730945987216,0.000834,75385.0,75375.0,0.789834]
[1730945987429,0.000834,75385.0,75376.0,0.1978931]
[1730945987637,0.000834,75385.0,75375.0,0.789834]
[1730945987846,0.000834,75385.0,75375.0,0.8703174]
[1730945992459,0.000834,75385.0,75375.0,0.0804834]
[1730945993707,0.00199065,75384.0,75375.0,0.0804834]
[1730945996104,0.00199065,75384.0,75375.0,0.08313658]
[1730945996319,0.00199065,75384.0,75383.0,0.005]
[1730945996538,0.00199065,75384.0,75383.0,0.23080406]
[1730945996745,0.000834,75385.0,75384.0,0.005]
[1730945997004,0.000834,75385.0,75384.0,0.92907502]
[1730945997435,0.000834,75385.0,75384.0,0.92707502]
[1730945998532,0.000834,75385.0,75384.0,0.95981143]
[1730945998737,0.000834,75385.0,75384.0,1.00348934]
[1730945998975,0.000834,75385.0,75384.0,1.00148934]
[1730945999584,0.000834,75385.0,75384.0,0.92707502]
[1730945999802,0.000834,75385.0,75384.0,0.92207502]
[1730946000011,0.000834,75385.0,75384.0,0.789834]
[1730946001503,0.000834,75385.0,75381.0,0.799834]
[1730946001707,0.000834,75385.0,75382.0,0.13224102]
[1730946002982,0.000834,75385.0,75378.0,0.789834]
[1730946006357,0.000834,75385.0,75379.0,0.0789834]
[1730946007464,0.000834,75385.0,75373.0,0.01]
[1730946007664,0.000834,75385.0,75374.0,0.13224102]
[1730946008630,0.000834,75385.0,75374.0,0.13424102]
[1730946009517,0.000834,75385.0,75375.0,0.002]
[1730946009747,0.000834,75385.0,75382.0,0.15463038]
[1730946009980,0.000834,75385.0,75384.0,0.005]
[1730946010202,0.000834,75385.0,75384.0,0.13724102]
[1730946010434,0.000834,75385.0,75384.0,0.92707502]
[1730946011794,0.000834,75385.0,75384.0,0.93407502]
[1730946012288,0.000834,75385.0,75384.0,0.93907502]
[1730946012502,0.000834,75385.0,75384.0,1.20467224]
[1730946012726,0.000834,75385.0,75384.0,1.05004186]
[1730946013406,0.000834,75385.0,75384.0,1.28247271]
[1730946013597,0.000834,75385.0,75384.0,1.38247271]
[1730946013865,0.000834,75385.0,75384.0,1.45927271]
[1730946014564,0.000834,75385.0,75384.0,1.48227271]
[1730946015250,0.000834,75385.0,75384.0,1.48648047]
[1730946017051,0.000834,75385.0,75384.0,1.46648047]
[1730946017261,0.000834,75385.0,75384.0,1.31185009]
[1730946018094,0.000834,75385.0,75384.0,1.30764233]
[1730946018506,0.000834,75385.0,75384.0,1.31184748]
[1730946019111,0.000834,75385.0,75384.0,1.46647786]
[1730946019332,0.000834,75385.0,75384.0,1.31184748]
[1730946021998,0.000834,75385.0,75384.0,1.28464233]
[1730946022234,0.000834,75385.0,75384.0,1.28884789]
[1730946022440,0.000834,75385.0,75384.0,1.44347827]
[1730946023541,0.000834,75385.0,75384.0,1.48297408]
[1730946024457,0.000834,75385.0,75384.0,1.3283437]
[1730946024670,0.000834,75385.0,75384.0,1.28884789]
[1730946025087,0.000834,75385.0,75384.0,1.44347827]
[1730946025316,0.000834,75385.0,75384.0,1.43927271]
[1730946025525,0.000834,75385.0,75384.0,1.44348205]
[1730946025735,0.000834,75385.0,75384.0,1.46648205]
[1730946027076,0.000834,75385.0,75384.0,1.52586231]
[1730946027295,0.000834,75385.0,75384.0,1.53260098]
[1730946027498,0.1978931,75399.0,75394.0,0.002]